[Event "*** Titled Tuesday Blitz"]
[Site "Chess.com"]
[Date "2020.05.19"]
[Round "6"]
[White "Charlottemillard17"]
[Black "novocane"]
[Result "0-1"]
[WhiteElo "1418"]
[BlackElo "2217"]
[TimeControl "180+1"]
[EndTime "13:08:53 PDT"]
[Termination "novocane won by checkmate"]

1. e4 {[%clk 0:03:00.9]} 1... c5 {[%clk 0:02:58.8]} 2. Nf3 {[%clk 0:03:00.3]}
2... Nc6 {[%clk 0:02:58.5]} 3. d4 {[%clk 0:02:58.8]} 3... cxd4 {[%clk
0:02:59.4]} 4. Nxd4 {[%clk 0:02:58.7]} 4... e5 {[%clk 0:02:59.6]} 5. Nb3 {[%clk
0:02:57.9]} 5... Nf6 {[%clk 0:02:58.5]} 6. Nc3 {[%clk 0:02:56.8]} 6... Bb4
{[%clk 0:02:57.3]} 7. Bd3 {[%clk 0:02:45.8]} 7... d5 {[%clk 0:02:55.9]} 8. f3
{[%clk 0:02:36.4]} 8... dxe4 {[%clk 0:02:46.6]} 9. fxe4 {[%clk 0:02:32.4]} 9...
Bxc3+ {[%clk 0:02:26.7]} 10. bxc3 {[%clk 0:02:31.3]} 10... Nxe4 {[%clk
0:02:23.6]} 11. O-O {[%clk 0:02:12.3]} 11... Qb6+ {[%clk 0:02:11.8]} 12. Nd4
{[%clk 0:01:34.3]} 12... Nxd4 {[%clk 0:02:04.7]} 13. Bxe4 {[%clk 0:01:15.7]}
13... Nxc2+ {[%clk 0:01:46.9]} 14. Kh1 {[%clk 0:01:12.1]} 14... Nxa1 {[%clk
0:01:46.5]} 15. Bd5 {[%clk 0:01:06.4]} 15... O-O {[%clk 0:01:11.6]} 16. Qf3
{[%clk 0:00:55.9]} 16... Be6 {[%clk 0:01:09.3]} 17. Bh6 {[%clk 0:00:31.7]} 17...
Bxd5 {[%clk 0:01:02]} 18. Qg4 {[%clk 0:00:24.1]} 18... Qxh6 {[%clk 0:00:58.7]}
19. Rxa1 {[%clk 0:00:20.4]} 19... Rac8 {[%clk 0:00:57]} 20. Qb4 {[%clk
0:00:15.6]} 20... Qg6 {[%clk 0:00:54]} 21. Qb2 {[%clk 0:00:11.3]} 21... Rxc3
{[%clk 0:00:52]} 22. Qf2 {[%clk 0:00:09.6]} 22... Rfc8 {[%clk 0:00:49.7]} 23.
Rg1 {[%clk 0:00:08]} 23... Rc1 {[%clk 0:00:45.5]} 24. h3 {[%clk 0:00:07.7]}
24... Rxg1+ {[%clk 0:00:42.3]} 25. Kxg1 {[%clk 0:00:07.3]} 25... Rc1+ {[%clk
0:00:40.5]} 26. Kh2 {[%clk 0:00:07.5]} 26... Qb1 {[%clk 0:00:38.8]} 27. Kg3
{[%clk 0:00:06.1]} 27... h5 {[%clk 0:00:37.1]} 28. h4 {[%clk 0:00:05.3]} 28...
Qd3+ {[%clk 0:00:35.4]} 29. Kh2 {[%clk 0:00:05]} 29... Qe4 {[%clk 0:00:33.4]}
30. Kh3 {[%clk 0:00:04.2]} 30... Rc3+ {[%clk 0:00:32.7]} 31. Kh2 {[%clk
0:00:04.1]} 31... Rc2 {[%clk 0:00:32]} 32. Qg3 {[%clk 0:00:02.4]} 32... Rxg2+
{[%clk 0:00:31]} 33. Qxg2 {[%clk 0:00:02.9]} 33... Qxg2# {[%clk 0:00:30.2]} 0-1

[Event "*** Titled Tuesday Blitz"]
[Site "Chess.com"]
[Date "2020.05.19"]
[Round "6"]
[White "1977Ivan"]
[Black "karinachess1"]
[Result "1-0"]
[WhiteElo "2631"]
[BlackElo "2491"]
[TimeControl "180+1"]
[EndTime "13:08:54 PDT"]
[Termination "1977Ivan won on time"]

1. c4 {[%clk 0:03:00.9]} 1... e6 {[%clk 0:02:53]} 2. Nc3 {[%clk 0:03:00]} 2...
d5 {[%clk 0:02:52.7]} 3. d4 {[%clk 0:03:00.6]} 3... Nf6 {[%clk 0:02:50.8]} 4.
cxd5 {[%clk 0:03:01]} 4... exd5 {[%clk 0:02:51.7]} 5. Bg5 {[%clk 0:03:00.2]}
5... c6 {[%clk 0:02:50.9]} 6. e3 {[%clk 0:03:00.6]} 6... Be7 {[%clk 0:02:50.7]}
7. Bd3 {[%clk 0:02:59.9]} 7... Nbd7 {[%clk 0:02:46.1]} 8. Nge2 {[%clk
0:02:59.6]} 8... h6 {[%clk 0:02:45.6]} 9. Bh4 {[%clk 0:02:58.4]} 9... Nh5 {[%clk
0:02:45.8]} 10. Bxe7 {[%clk 0:02:56.9]} 10... Qxe7 {[%clk 0:02:46.7]} 11. Qd2
{[%clk 0:02:45.3]} 11... Nb6 {[%clk 0:02:31.8]} 12. b3 {[%clk 0:02:40.5]} 12...
Bd7 {[%clk 0:02:22.3]} 13. f3 {[%clk 0:02:36]} 13... Qg5 {[%clk 0:02:09.8]} 14.
Kf2 {[%clk 0:02:27.5]} 14... O-O {[%clk 0:02:08]} 15. h4 {[%clk 0:02:25.5]}
15... Qf6 {[%clk 0:01:47.7]} 16. e4 {[%clk 0:02:25.1]} 16... dxe4 {[%clk
0:01:39]} 17. Nxe4 {[%clk 0:02:24.6]} 17... Qe7 {[%clk 0:01:38.9]} 18. g4 {[%clk
0:02:19.1]} 18... Nf6 {[%clk 0:01:36.4]} 19. Nxf6+ {[%clk 0:02:08.6]} 19... Qxf6
{[%clk 0:01:36.4]} 20. g5 {[%clk 0:02:08.8]} 20... Qd6 {[%clk 0:01:34.2]} 21.
gxh6 {[%clk 0:02:00.1]} 21... Qxh6 {[%clk 0:01:31.8]} 22. Qxh6 {[%clk 0:02:00]}
22... gxh6 {[%clk 0:01:32.7]} 23. Rhg1+ {[%clk 0:02:00.3]} 23... Kh8 {[%clk
0:01:32.6]} 24. Nf4 {[%clk 0:02:00.8]} 24... Rg8 {[%clk 0:01:09.8]} 25. Nh5
{[%clk 0:01:47.4]} 25... Nd5 {[%clk 0:01:09.3]} 26. Be4 {[%clk 0:01:46.2]} 26...
Be6 {[%clk 0:00:55.2]} 27. Bxd5 {[%clk 0:01:41.7]} 27... Bxd5 {[%clk 0:00:53.4]}
28. Nf6 {[%clk 0:01:41.7]} 28... Rxg1 {[%clk 0:00:48.5]} 29. Rxg1 {[%clk
0:01:40.5]} 29... Rd8 {[%clk 0:00:48.5]} 30. Ke3 {[%clk 0:01:38.3]} 30... Be6
{[%clk 0:00:41.4]} 31. Ke4 {[%clk 0:01:37.9]} 31... a5 {[%clk 0:00:31]} 32. Ke5
{[%clk 0:01:36.6]} 32... a4 {[%clk 0:00:17.4]} 33. bxa4 {[%clk 0:01:36.1]} 33...
Bxa2 {[%clk 0:00:18.3]} 34. a5 {[%clk 0:01:34.9]} 34... Bc4 {[%clk 0:00:17.4]}
35. f4 {[%clk 0:01:33.9]} 35... Ra8 {[%clk 0:00:15.2]} 36. Kd6 {[%clk
0:01:32.3]} 36... Ba6 {[%clk 0:00:13.1]} 37. f5 {[%clk 0:01:30.3]} 37... Bc4
{[%clk 0:00:12.3]} 38. Ke7 {[%clk 0:01:25.2]} 38... Bd5 {[%clk 0:00:10.4]} 39.
Nxd5 {[%clk 0:01:21.2]} 39... cxd5 {[%clk 0:00:11.3]} 40. Kxf7 {[%clk
0:01:20.4]} 40... Rxa5 {[%clk 0:00:11.5]} 41. f6 {[%clk 0:01:15.4]} 41... Ra8
{[%clk 0:00:09.9]} 42. Rb1 {[%clk 0:01:09.6]} 42... Ra7 {[%clk 0:00:08.5]} 43.
Rb6 {[%clk 0:01:08.3]} 43... Kh7 {[%clk 0:00:06.2]} 44. h5 {[%clk 0:01:08.3]}
44... Kh8 {[%clk 0:00:03.3]} 45. Kg6 {[%clk 0:01:07.6]} 45... Kg8 {[%clk
0:00:02.7]} 46. Re6 {[%clk 0:01:02.6]} 46... Kf8 {[%clk 0:00:02.3]} 47. Re7
{[%clk 0:00:57.4]} 1-0

[Event "*** Titled Tuesday Blitz"]
[Site "Chess.com"]
[Date "2020.05.19"]
[Round "6"]
[White "ama18"]
[Black "JoachimMouhamad"]
[Result "0-1"]
[WhiteElo "2467"]
[BlackElo "2327"]
[TimeControl "180+1"]
[EndTime "13:08:54 PDT"]
[Termination "JoachimMouhamad won on time"]

1. e4 {[%clk 0:03:00.9]} 1... e5 {[%clk 0:02:58.3]} 2. Nf3 {[%clk 0:03:00.6]}
2... Nc6 {[%clk 0:02:58.4]} 3. Bb5 {[%clk 0:03:01.2]} 3... a6 {[%clk 0:02:58.1]}
4. Ba4 {[%clk 0:03:01.3]} 4... Nf6 {[%clk 0:02:57.8]} 5. O-O {[%clk 0:03:01.9]}
5... Be7 {[%clk 0:02:56.7]} 6. Re1 {[%clk 0:03:01.7]} 6... b5 {[%clk 0:02:57.2]}
7. Bb3 {[%clk 0:03:01.8]} 7... d6 {[%clk 0:02:57.8]} 8. c3 {[%clk 0:03:01.8]}
8... O-O {[%clk 0:02:56.1]} 9. d4 {[%clk 0:03:00]} 9... Bg4 {[%clk 0:02:52.6]}
10. Be3 {[%clk 0:03:00.1]} 10... Na5 {[%clk 0:02:31.6]} 11. Bc2 {[%clk
0:02:57.4]} 11... Nc4 {[%clk 0:02:29.5]} 12. Bc1 {[%clk 0:02:55.4]} 12... Re8
{[%clk 0:02:04.1]} 13. h3 {[%clk 0:02:40.4]} 13... Bxf3 {[%clk 0:02:03.5]} 14.
Qxf3 {[%clk 0:02:41.3]} 14... h6 {[%clk 0:01:57.6]} 15. a4 {[%clk 0:02:39.8]}
15... Nb6 {[%clk 0:01:50.8]} 16. a5 {[%clk 0:02:16.6]} 16... Nbd7 {[%clk
0:01:50.1]} 17. Nd2 {[%clk 0:02:15.6]} 17... Bf8 {[%clk 0:01:47.2]} 18. Nf1
{[%clk 0:02:14.8]} 18... exd4 {[%clk 0:01:46.4]} 19. cxd4 {[%clk 0:02:14.6]}
19... c5 {[%clk 0:01:47.3]} 20. d5 {[%clk 0:02:11.8]} 20... Ne5 {[%clk
0:01:47.4]} 21. Qd1 {[%clk 0:02:11.8]} 21... Nc4 {[%clk 0:01:42.4]} 22. Ng3
{[%clk 0:01:50.7]} 22... g6 {[%clk 0:01:34.2]} 23. f4 {[%clk 0:01:26.7]} 23...
Bg7 {[%clk 0:01:25]} 24. b3 {[%clk 0:01:08.4]} 24... Nxa5 {[%clk 0:01:11.4]} 25.
Ra2 {[%clk 0:00:44.9]} 25... c4 {[%clk 0:01:10.3]} 26. b4 {[%clk 0:00:43.5]}
26... Nb3 {[%clk 0:01:09.7]} 27. Bxb3 {[%clk 0:00:40.2]} 27... cxb3 {[%clk
0:01:10.6]} 28. Qxb3 {[%clk 0:00:40.6]} 28... h5 {[%clk 0:01:01.5]} 29. Bb2
{[%clk 0:00:35.9]} 29... h4 {[%clk 0:01:00.1]} 30. Nf1 {[%clk 0:00:06.5]} 30...
Qb6+ {[%clk 0:00:59]} 31. Kh2 {[%clk 0:00:05.6]} 31... Rxe4 {[%clk 0:00:57.1]}
32. Rxe4 {[%clk 0:00:05]} 32... Nxe4 {[%clk 0:00:58]} 33. Bxg7 {[%clk
0:00:05.1]} 33... Kxg7 {[%clk 0:00:58.4]} 34. Ne3 {[%clk 0:00:03.3]} 34... Qd4
{[%clk 0:00:48.1]} 35. Ng4 {[%clk 0:00:03]} 35... Rc8 {[%clk 0:00:37.6]} 36. Re2
{[%clk 0:00:02.4]} 36... Rc1 {[%clk 0:00:36.4]} 0-1

[Event "*** Titled Tuesday Blitz"]
[Site "Chess.com"]
[Date "2020.05.19"]
[Round "6"]
[White "Kavyev_Ruslan"]
[Black "calin_dragomirescu"]
[Result "1-0"]
[WhiteElo "2439"]
[BlackElo "2203"]
[TimeControl "180+1"]
[EndTime "13:08:54 PDT"]
[Termination "Kavyev_Ruslan won by resignation"]

1. d4 {[%clk 0:02:57.1]} 1... g6 {[%clk 0:02:59.8]} 2. c4 {[%clk 0:02:57.2]}
2... Bg7 {[%clk 0:02:59.2]} 3. Nc3 {[%clk 0:02:57.2]} 3... Nf6 {[%clk
0:02:59.3]} 4. e4 {[%clk 0:02:57.4]} 4... d6 {[%clk 0:02:59.7]} 5. Be2 {[%clk
0:02:57.7]} 5... O-O {[%clk 0:02:59.8]} 6. Be3 {[%clk 0:02:58.3]} 6... Na6
{[%clk 0:02:58.8]} 7. h4 {[%clk 0:02:58]} 7... h5 {[%clk 0:02:57.7]} 8. f3
{[%clk 0:02:51]} 8... c6 {[%clk 0:02:56.3]} 9. Nh3 {[%clk 0:02:50.2]} 9... Bxh3
{[%clk 0:02:55.3]} 10. Rxh3 {[%clk 0:02:50]} 10... e5 {[%clk 0:02:55.3]} 11.
dxe5 {[%clk 0:02:46.2]} 11... dxe5 {[%clk 0:02:54.8]} 12. Qxd8 {[%clk
0:02:44.7]} 12... Rfxd8 {[%clk 0:02:54.3]} 13. Rh1 {[%clk 0:02:44]} 13... Bf8
{[%clk 0:02:52.3]} 14. Bg5 {[%clk 0:02:39.6]} 14... Kg7 {[%clk 0:02:47.9]} 15.
Rd1 {[%clk 0:02:38.3]} 15... Bb4 {[%clk 0:02:46.8]} 16. Bd2 {[%clk 0:02:29.2]}
16... Bc5 {[%clk 0:02:35.8]} 17. a3 {[%clk 0:02:28.7]} 17... Bd4 {[%clk
0:02:33.7]} 18. b4 {[%clk 0:02:27.4]} 18... Nc7 {[%clk 0:02:31.5]} 19. Na4
{[%clk 0:02:26.7]} 19... b6 {[%clk 0:02:27.8]} 20. Bd3 {[%clk 0:02:22.3]} 20...
Ne6 {[%clk 0:02:27.3]} 21. g3 {[%clk 0:02:20.7]} 21... Nd7 {[%clk 0:02:17.4]}
22. Ke2 {[%clk 0:02:20.4]} 22... b5 {[%clk 0:02:14.2]} 23. cxb5 {[%clk
0:02:18.1]} 23... cxb5 {[%clk 0:02:13.8]} 24. Bxb5 {[%clk 0:02:18.5]} 24... Nb6
{[%clk 0:02:13.6]} 25. Rb1 {[%clk 0:01:49.7]} 25... Nxa4 {[%clk 0:02:10.3]} 26.
Bxa4 {[%clk 0:01:49.6]} 26... Bb6 {[%clk 0:02:02]} 27. Be3 {[%clk 0:01:45]}
27... Nd4+ {[%clk 0:01:55.6]} 28. Kf2 {[%clk 0:01:40.6]} 28... Rac8 {[%clk
0:01:51.8]} 29. Rhc1 {[%clk 0:01:39.4]} 29... f5 {[%clk 0:01:38.6]} 30. exf5
{[%clk 0:01:36.6]} 30... gxf5 {[%clk 0:01:37.2]} 31. Bd1 {[%clk 0:01:35.4]}
31... Ne6 {[%clk 0:01:28.5]} 32. Be2 {[%clk 0:01:20.2]} 32... Kf6 {[%clk
0:01:21.1]} 33. a4 {[%clk 0:01:18]} 33... Bxe3+ {[%clk 0:01:19.3]} 34. Kxe3
{[%clk 0:01:18.2]} 34... Nd4 {[%clk 0:01:18.7]} 35. b5 {[%clk 0:01:14.4]} 35...
f4+ {[%clk 0:01:09.9]} 36. gxf4 {[%clk 0:01:14.5]} 36... exf4+ {[%clk
0:01:10.1]} 37. Kf2 {[%clk 0:01:14.9]} 37... Re8 {[%clk 0:01:04.4]} 38. Bd3
{[%clk 0:01:13.1]} 38... Rxc1 {[%clk 0:00:58.5]} 39. Rxc1 {[%clk 0:01:14]} 39...
Re3 {[%clk 0:00:57.4]} 40. Be4 {[%clk 0:01:13.8]} 40... Ra3 {[%clk 0:00:50.7]}
41. Rc4 {[%clk 0:01:07.7]} 41... Ra2+ {[%clk 0:00:48.3]} 42. Ke1 {[%clk
0:01:05.4]} 42... Ke5 {[%clk 0:00:46]} 43. Rc5+ {[%clk 0:01:03.8]} 43... Ke6
{[%clk 0:00:44.2]} 44. Rxh5 {[%clk 0:01:03.7]} 44... Rxa4 {[%clk 0:00:37.9]} 45.
Rd5 {[%clk 0:00:59.4]} 45... Rb4 {[%clk 0:00:37.2]} 46. h5 {[%clk 0:00:56.3]}
46... Nxb5 {[%clk 0:00:32.6]} 47. h6 {[%clk 0:00:56.5]} 47... Nc3 {[%clk
0:00:32.3]} 48. h7 {[%clk 0:00:56.9]} 48... Rb8 {[%clk 0:00:30.9]} 49. Rg5
{[%clk 0:00:56]} 49... Rh8 {[%clk 0:00:23.9]} 50. Rg8 {[%clk 0:00:55.4]} 1-0

[Event "*** Titled Tuesday Blitz"]
[Site "Chess.com"]
[Date "2020.05.19"]
[Round "6"]
[White "TreinadorBR"]
[Black "Ariadna_Atreides"]
[Result "0-1"]
[WhiteElo "2247"]
[BlackElo "2082"]
[TimeControl "180+1"]
[EndTime "13:08:57 PDT"]
[Termination "Ariadna_Atreides won by resignation"]

1. e4 {[%clk 0:03:00.9]} 1... c5 {[%clk 0:02:54]} 2. Nf3 {[%clk 0:03:01]} 2...
d6 {[%clk 0:02:53.8]} 3. d4 {[%clk 0:03:01.9]} 3... cxd4 {[%clk 0:02:53.1]} 4.
Nxd4 {[%clk 0:03:02.8]} 4... Nf6 {[%clk 0:02:53.2]} 5. Nc3 {[%clk 0:03:03]} 5...
Nc6 {[%clk 0:02:53.8]} 6. Bg5 {[%clk 0:03:02.2]} 6... e6 {[%clk 0:02:53.3]} 7.
Qd2 {[%clk 0:03:02.4]} 7... a6 {[%clk 0:02:53.7]} 8. f3 {[%clk 0:03:02.7]} 8...
Bd7 {[%clk 0:02:53.4]} 9. O-O-O {[%clk 0:03:03.2]} 9... b5 {[%clk 0:02:53.6]}
10. Kb1 {[%clk 0:03:03.6]} 10... Be7 {[%clk 0:02:52.5]} 11. g4 {[%clk
0:03:01.6]} 11... h6 {[%clk 0:02:49.1]} 12. Bxf6 {[%clk 0:03:00.6]} 12... gxf6
{[%clk 0:02:46.7]} 13. Bxb5 {[%clk 0:02:56.9]} 13... axb5 {[%clk 0:02:45.2]} 14.
Ndxb5 {[%clk 0:02:57.8]} 14... Ne5 {[%clk 0:02:07.1]} 15. Nxd6+ {[%clk
0:02:52.7]} 15... Bxd6 {[%clk 0:02:03.9]} 16. Qxd6 {[%clk 0:02:53.6]} 16... Nxf3
{[%clk 0:02:02.8]} 17. e5 {[%clk 0:02:39.3]} 17... Nxe5 {[%clk 0:02:00.8]} 18.
Ne4 {[%clk 0:02:39]} 18... Qe7 {[%clk 0:01:50.7]} 19. Qc7 {[%clk 0:02:33]} 19...
Bc6 {[%clk 0:01:45.6]} 20. Nxf6+ {[%clk 0:02:14.7]} 20... Qxf6 {[%clk
0:01:41.5]} 21. Rhf1 {[%clk 0:02:15]} 21... Qg7 {[%clk 0:01:39]} 22. Rde1 {[%clk
0:02:09.7]} 22... O-O {[%clk 0:01:12.5]} 23. Rxe5 {[%clk 0:02:03]} 23... Bd5
{[%clk 0:01:10.5]} 24. a3 {[%clk 0:01:37.8]} 24... Rac8 {[%clk 0:01:09.3]} 25.
Qd6 {[%clk 0:01:32.4]} 25... Rfd8 {[%clk 0:01:08.6]} 26. Rxd5 {[%clk 0:01:28.2]}
26... Rxd6 {[%clk 0:01:01]} 27. Rxd6 {[%clk 0:01:29.1]} 27... Qxg4 {[%clk
0:00:59.2]} 28. Rdd1 {[%clk 0:01:28.7]} 28... Kf8 {[%clk 0:00:56.1]} 29. Rd3
{[%clk 0:01:27.3]} 29... Qg2 {[%clk 0:00:53.9]} 30. Rc1 {[%clk 0:01:15.4]} 30...
Qxh2 {[%clk 0:00:53.1]} 31. Rf3 {[%clk 0:01:13.5]} 31... h5 {[%clk 0:00:45.3]}
32. c3 {[%clk 0:01:13.2]} 32... Rb8 {[%clk 0:00:43]} 33. b4 {[%clk 0:01:09.3]}
33... Qe2 {[%clk 0:00:39.6]} 34. Rcf1 {[%clk 0:01:08.3]} 34... f5 {[%clk
0:00:38.8]} 35. R1f2 {[%clk 0:01:08.5]} 35... Qe1+ {[%clk 0:00:37.9]} 36. Kb2
{[%clk 0:01:08.7]} 36... h4 {[%clk 0:00:36.2]} 37. Rh2 {[%clk 0:01:07.3]} 37...
Rd8 {[%clk 0:00:32.7]} 38. Rff2 {[%clk 0:01:03.2]} 38... Qe4 {[%clk 0:00:29]}
39. Re2 {[%clk 0:01:02.8]} 39... Qc4 {[%clk 0:00:28]} 40. Re3 {[%clk 0:00:54.1]}
40... Rd3 {[%clk 0:00:26.3]} 41. Rxd3 {[%clk 0:00:54.2]} 41... Qxd3 {[%clk
0:00:25.9]} 42. Rxh4 {[%clk 0:00:55.1]} 42... Qd2+ {[%clk 0:00:24.5]} 43. Kb3
{[%clk 0:00:55.5]} 43... f4 {[%clk 0:00:24]} 44. Rh8+ {[%clk 0:00:50.4]} 44...
Kg7 {[%clk 0:00:23.5]} 45. Re8 {[%clk 0:00:48.4]} 45... f3 {[%clk 0:00:22.6]}
46. Re7+ {[%clk 0:00:47.2]} 46... Kf6 {[%clk 0:00:22]} 47. Re8 {[%clk
0:00:46.7]} 47... f2 {[%clk 0:00:21.9]} 48. a4 {[%clk 0:00:46.8]} 48... Ke5
{[%clk 0:00:20.7]} 49. Rf8 {[%clk 0:00:45.9]} 49... Qd1+ {[%clk 0:00:20.2]} 50.
Ka3 {[%clk 0:00:45.4]} 50... f1=Q {[%clk 0:00:20.6]} 0-1

[Event "*** Titled Tuesday Blitz"]
[Site "Chess.com"]
[Date "2020.05.19"]
[Round "6"]
[White "pavelalexandru07"]
[Black "tgpgoat"]
[Result "0-1"]
[WhiteElo "2193"]
[BlackElo "2053"]
[TimeControl "180+1"]
[EndTime "13:08:58 PDT"]
[Termination "tgpgoat won by resignation"]

1. e4 {[%clk 0:03:00.9]} 1... c5 {[%clk 0:02:58.9]} 2. Nf3 {[%clk 0:03:00.3]}
2... Nc6 {[%clk 0:02:59.2]} 3. d4 {[%clk 0:03:00.3]} 3... cxd4 {[%clk
0:03:00.1]} 4. Nxd4 {[%clk 0:03:00.4]} 4... e6 {[%clk 0:03:00.7]} 5. c4 {[%clk
0:02:53.7]} 5... Qc7 {[%clk 0:03:00.5]} 6. Nc3 {[%clk 0:02:45.8]} 6... a6 {[%clk
0:03:00.5]} 7. a3 {[%clk 0:02:45.4]} 7... Nf6 {[%clk 0:02:59.5]} 8. Be3 {[%clk
0:02:42.7]} 8... Be7 {[%clk 0:02:58.7]} 9. Be2 {[%clk 0:02:42.1]} 9... O-O
{[%clk 0:02:58.3]} 10. O-O {[%clk 0:02:42]} 10... Rd8 {[%clk 0:02:57.9]} 11. Rc1
{[%clk 0:02:41.4]} 11... Qb8 {[%clk 0:02:56.9]} 12. Qd2 {[%clk 0:02:32.3]} 12...
d5 {[%clk 0:02:55.5]} 13. exd5 {[%clk 0:02:15.7]} 13... exd5 {[%clk 0:02:56.4]}
14. cxd5 {[%clk 0:02:16]} 14... Nxd5 {[%clk 0:02:56.9]} 15. Nxd5 {[%clk
0:02:16.2]} 15... Rxd5 {[%clk 0:02:57.8]} 16. Bf3 {[%clk 0:02:16.5]} 16... Rd8
{[%clk 0:02:53.3]} 17. Nxc6 {[%clk 0:02:10.4]} 17... bxc6 {[%clk 0:02:54.2]} 18.
Qc2 {[%clk 0:02:06.2]} 18... Bb7 {[%clk 0:02:47.8]} 19. Rfe1 {[%clk 0:01:39.5]}
19... c5 {[%clk 0:02:44]} 20. Bxb7 {[%clk 0:01:24.7]} 20... Qxb7 {[%clk
0:02:44.9]} 21. Bxc5 {[%clk 0:01:24.7]} 21... Bxc5 {[%clk 0:02:44.1]} 22. Qxc5
{[%clk 0:01:24.8]} 22... Qxb2 {[%clk 0:02:44.3]} 23. Red1 {[%clk 0:01:04]} 23...
Rxd1+ {[%clk 0:02:40.4]} 24. Rxd1 {[%clk 0:01:04.9]} 24... g6 {[%clk 0:02:40.6]}
25. g3 {[%clk 0:00:54.1]} 25... Rb8 {[%clk 0:02:37.8]} 26. a4 {[%clk 0:00:41]}
26... Qe2 {[%clk 0:02:20.8]} 27. Qd6 {[%clk 0:00:34]} 27... Rb2 {[%clk
0:02:16.9]} 28. Qd8+ {[%clk 0:00:32.9]} 28... Kg7 {[%clk 0:02:16.5]} 29. Qd4+
{[%clk 0:00:33.3]} 29... Kg8 {[%clk 0:02:16.5]} 30. Rf1 {[%clk 0:00:25.4]} 30...
Rd2 {[%clk 0:02:10.6]} 31. Qc5 {[%clk 0:00:12.7]} 31... Rd1 {[%clk 0:01:57.5]}
32. Rxd1 {[%clk 0:00:12.3]} 32... Qxd1+ {[%clk 0:01:56.2]} 33. Kg2 {[%clk
0:00:12.6]} 33... Qxa4 {[%clk 0:01:56.8]} 34. Qc8+ {[%clk 0:00:12.2]} 34... Kg7
{[%clk 0:01:56.6]} 35. Qc3+ {[%clk 0:00:11.7]} 35... Kf8 {[%clk 0:01:56.4]} 36.
Qc8+ {[%clk 0:00:08.2]} 36... Ke7 {[%clk 0:01:56.6]} 37. Qc7+ {[%clk 0:00:07.4]}
37... Qd7 {[%clk 0:01:56.2]} 38. Qc5+ {[%clk 0:00:06.5]} 38... Qd6 {[%clk
0:01:56.3]} 39. Qa7+ {[%clk 0:00:06.4]} 39... Ke6 {[%clk 0:01:56.2]} 40. Qe3+
{[%clk 0:00:06.4]} 40... Kd7 {[%clk 0:01:52.5]} 41. Qa7+ {[%clk 0:00:06.1]}
41... Ke6 {[%clk 0:01:49.4]} 42. Qe3+ {[%clk 0:00:05.7]} 42... Kf6 {[%clk
0:01:49.2]} 43. Qc3+ {[%clk 0:00:05.3]} 43... Qe5 {[%clk 0:01:49.1]} 44. Qc6+
{[%clk 0:00:05.1]} 44... Qe6 {[%clk 0:01:49.2]} 45. Qc3+ {[%clk 0:00:05.2]}
45... Kf5 {[%clk 0:01:31.7]} 46. Qf3+ {[%clk 0:00:03.7]} 46... Ke5 {[%clk
0:01:31.1]} 47. Qc3+ {[%clk 0:00:03.6]} 47... Kd5 {[%clk 0:01:30.2]} 48. Qb3+
{[%clk 0:00:03.6]} 48... Kc5 {[%clk 0:01:29.5]} 49. Qa3+ {[%clk 0:00:02.5]}
49... Kb5 {[%clk 0:01:29]} 50. Qb2+ {[%clk 0:00:02.9]} 50... Ka4 {[%clk
0:01:27.1]} 51. Qc2+ {[%clk 0:00:02.9]} 51... Qb3 {[%clk 0:01:27.2]} 52. Qc6+
{[%clk 0:00:03.4]} 52... Qb5 {[%clk 0:01:26.4]} 53. Qc7 {[%clk 0:00:03.8]} 53...
Qd5+ {[%clk 0:01:25.4]} 54. f3 {[%clk 0:00:04.4]} 54... a5 {[%clk 0:01:26.3]}
55. Qc2+ {[%clk 0:00:03.7]} 55... Qb3 {[%clk 0:01:20.9]} 56. Qc6+ {[%clk
0:00:03.7]} 56... Ka3 {[%clk 0:01:21]} 57. Qc1+ {[%clk 0:00:04]} 57... Qb2+
{[%clk 0:01:20.7]} 58. Qxb2+ {[%clk 0:00:03.7]} 58... Kxb2 {[%clk 0:01:21.6]}
0-1